Cogmind - Beta 17 @@@ ROGUE MODE // 2026.07.13 @ 13:57:17 Player: Marienkos Result: Destroyed by as-96814 with Assembled Rifle Performance ------------- Evolutions (0) 0 Regions Visited (2) 400 Robots Destroyed (6) 30 Value Destroyed (217) 217 Prototype IDs (0) 0 Alien Tech Used (0) 0 Bonus (0) 0 TOTAL SCORE: 647 Bonus ------- None Cogmind --------- Core Integrity 0/250 Matter 248/300 Energy 100/100 System Corruption 5% Temperature Cool (5) Movement Core (50) Location -10/Mines Parts ------- > --- POWER (1) -------- (None) > --- PROPULSION (2) --- (None) > --- UTILITY (2) ------ (None) > --- WEAPON (2) ------- Assault Rifle > --- INVENTORY (5) ---- Ion Engine Light Ion Engine Flight Unit Flight Unit Peak State ------------ > --- POWER ------------ Ion Engine > --- PROPULSION ------- Wheel Wheel > --- UTILITY ---------- Terrain Scanner > --- WEAPON ----------- Assault Rifle Rocket Launcher > --- INVENTORY -------- Ion Engine Light Ion Engine Flight Unit Flight Unit Assault Rifle [Rating: 7] Favorites ----------- Power Ion Engine Engine Ion Engine Propulsion Wheel Wheel Wheel Flight Unit Flight Unit Utility Terrain Scanner Device Terrain Scanner Weapon Assault Rifle Energy Gun EM Pulse Gun Ballistic Gun Assault Rifle Launcher Rocket Launcher Build | -11 -10 -10 ------- Run | Yrd Mat Min Slots Evolved . | . . . Power . | . . . Propulsion . | . . . Utility . | . . . Weapon . | . . . Parts Attached 12 | 5 5 2 Power 3 | 2 1 . Engine 3 | 2 1 . Core . | . . . Reactor . | . . . Propulsion 4 | 1 3 . Treads . | . . . Leg . | . . . Wheel 2 | 1 1 . Hover . | . . . Flight 2 | . 2 . Utility 1 | . 1 . Device 1 | . 1 . Storage . | . . . Processor . | . . . Hackware . | . . . Protection . | . . . Artifact . | . . . Weapon 4 | 2 . 2 Energy Gun 1 | 1 . . Energy Cannon . | . . . Ballistic Gun 2 | 1 . 1 Ballistic Cannon . | . . . Launcher 1 | . . 1 Special Weapon . | . . . Impact Weapon . | . . . Slashing Weapon . | . . . Piercing Weapon . | . . . Special Melee Weapon . | . . . Unidentified Prototypes . | . . . Parts Lost 7 | . 1 6 Power 1 | . . 1 Propulsion 2 | . . 2 Utility 1 | . . 1 Weapon 3 | . 1 2 Highest Loss Streak 6 | . 1 6 To Critical Strikes . | . . . Average Backups 4 | 2 4 4 Power 1 | . 1 2 Propulsion 1 | . 1 2 Utility . | . . . Weapon . | . 1 . Tool/Special . | . . . Unused Backups . | . . . Power . | . . . Propulsion . | . . . Utility . | . . . Weapon . | . . . Tool/Special . | . . . Average Slot Usage (%) 70 | . 73 66 Engine 12 | . 14 9 Wheel 23 | . 23 23 Device 9 | . 8 11 Energy Gun 8 | . 12 . Ballistic Gun 14 | . 14 14 Launcher 2 | . . 6 Peak Build Rating 7 | 4 6 7 Average Rating 4 | 3 5 5 On Entrance 3 | . 4 5 Avg Prop Armor Cover (%) . | . . . Naked Turns . | . . . Heaviest Build 12 | 9 10 12 Greatest Support 20 | 10 20 20 Greatest Overweight (x) 2 | 2 2 . Average Overweight (x) . | . . . Largest Inventory Capacity 5 | 5 5 5 Average Capacity 5 | 5 5 5 Most Carried 5 | 3 5 5 Average Carried 4 | 1 4 4 Final Capacity 5 | 5 5 5 Final Carried 5 | 3 5 4 Class Distribution -------------------- 100% | Mutant Dominant Class ---------------- Mutant | -10/Materials Mutant | -10/Mines Resources | -11 -10 -10 ----------- Run | Yrd Mat Min Matter Collected 391 | 199 184 8 Remotely . | . . . Salvage Created 289 | . 267 22 Parts 12 | . 12 . Haulers Intercepted . | . . . Recyclers Shooed . | . . . Parts Field Recycled . | . . . Retrieved Matter . | . . . Parts Self-Destructed . | . . . Prevented . | . . . Parts Restored . | . . . Kills | -11 -10 -10 ------- Run | Yrd Mat Min Combat Hostiles Destroyed 10 | . 6 4 Guns 7 | . 6 1 AOE 3 | . . 3 Classes Destroyed 2 | . 1 1 Grunt 6 | . 6 . Assembled 4 | . . 4 Best Kill Streak 5 | . 5 4 Combat Bots Only 5 | . 5 4 Max Kills in Single Turn 2 | . 1 2 Gunslinging . | . . . Exploded 2 | . . 2 Melee . | . . . Uniques/NPCs Destroyed . | . . . Combat | -11 -10 -10 -------- Run | Yrd Mat Min Hostile Shots Fired 78 | . 45 33 Missed 26 | . 19 7 Hits 52 | . 26 26 Melee 3 | . . 3 Projectile 49 | . 26 23 Part Disruptions 1 | . . 1 Damage Taken 744 | . 323 421 Core 255 | . 60 195 Absorbed by Shields . | . . . Core Remaining (%) 100 | 100 . . Volleys Fired 43 | . 26 17 Largest 2 | . 2 2 Hottest 60 | . 60 53 Shots Fired 60 | . 42 18 Gun 58 | . 42 16 Cannon . | . . . Launcher 2 | . . 2 Special . | . . . Kinetic 42 | . 26 16 Thermal . | . . . Explosive 2 | . . 2 Electromagnetic 16 | . 16 . Robot Hit Streak 7 | . 7 6 Robot Miss Streak 3 | . 3 2 Penetration Max . | . . . Secondary Targets 3 | . 3 . Max Gunslinging Chain 1 | . 1 . Shots Hit Robots 41 | . 30 11 Core Hits 23 | . 14 9 Critical Kills 1 | . 1 . Critical Parts Destroyed . | . . . Critical Strikes 1 | . 1 . Destroy 1 | . 1 . Melee Attacks . | . . . Impact . | . . . Slashing . | . . . Piercing . | . . . Sneak Attacks . | . . . Combat Hostiles . | . . . Follow-up Attacks . | . . . Damage Inflicted 805 | . 399 406 Guns 522 | . 399 123 Cannons . | . . . Explosions 283 | . . 283 Melee . | . . . Ramming . | . . . Kinetic 400 | . 277 123 Thermal . | . . . Explosive 283 | . . 283 Electromagnetic 122 | . 122 . Impact . | . . . Slashing . | . . . Piercing . | . . . Highest Corruption 5 | . . 5 Average Corruption 5 | . . 5 Corruption Purged . | . . . Corruption Blocked . | . . . Effects 2 | . . 2 Message Errors 1 | . . 1 Energy Discharges 1 | . . 1 Overload Shots . | . . . Overflow Damage 40 | . . 40 Projectiles . | . . . Explosions 40 | . . 40 Melee . | . . . Knockbacks . | . . . Impact . | . . . Kinetic . | . . . Secondary . | . . . Self-Inflicted Damage 32 | . . 32 Shots 1 | . . 1 Rammed . | . . . Targets Rammed . | . . . Kicked . | . . . Crushed . | . . . Highest Temperature 60 | . 60 15 Average Temperature 37 | . 39 10 Received Heat Transfer 283 | . 183 100 Siege Activations . | . . . Martial Activations . | . . . Shielding Activations . | . . . Robots Disrupted . | . . . Combat Hostiles . | . . . Robots Corrupted . | . . . Combat Hostiles . | . . . Parts Fried . | . . . Impact Corruptions . | . . . Robots Melted . | . . . Combat Hostiles . | . . . Parts Melted . | . . . Heat Transferred . | . . . Parts Sabotaged . | . . . Parts Stolen . | . . . Parts Stripped . | . . . Power Chain Reactions . | . . . Alert | -11 -10 -10 ------- Run | Yrd Mat Min Maximum Alert Level . | . . . Low Security (%) 100 | 100 100 100 Level 1 . | . . . Level 2 . | . . . Level 3 . | . . . Level 4 . | . . . Level 5 . | . . . High Security . | . . . Max Security . | . . . Peak Influence 110 | . 110 31 Initial 31 | . . 31 Average 24 | . 35 11 Influence Increases 166 | . 145 21 Destroy 0b10 Robot/C 120 | . 120 . Destroy Leader 20 | . 20 . Successful Hack 5 | . 5 . Destroy Structure 21 | . . 21 Influence Decreases 166 | . 65 101 Entered New Map 49 | . . 49 Time Decay 85 | . 55 30 Lost Part 32 | . 10 22 Squads Dispatched 3 | . 3 . Investigation 1 | . 1 . Extermination . | . . . Reinforcement 2 | . 2 . Assault . | . . . Garrison . | . . . Intercept . | . . . Searches Triggered . | . . . Construction Impeded . | . . . Haulers Reinforced . | . . . Active Scanning Responses . | . . . Cargo Convoy Interrupts . | . . . Stealth | -11 -10 -10 --------- Run | Yrd Mat Min Distress Signals 3 | . 3 . Communications Jammed . | . . . Distress Signals . | . . . Times Spotted 34 | . 15 19 Peak Tracking Total 20 | . 4 20 Tactical Retreats 1 | . . 1 Traps | -11 -10 -10 ------- Run | Yrd Mat Min Traps Triggered . | . . . Indirectly . | . . . Trap Hack Attempts . | . . . Triggered . | . . . Disarmed . | . . . Reprogrammed . | . . . Reused . | . . . Traps Extracted . | . . . Installed . | . . . Triggered . | . . . Machines | -11 -10 -10 ---------- Run | Yrd Mat Min Machines Disabled 1 | . 1 . Max in Single Turn 1 | . 1 . Machines Repaired . | . . . Machines Dismantled . | . . . Machines Sabotaged . | . . . Overloaded Fab Kills . | . . . Hacking | -11 -10 -10 --------- Run | Yrd Mat Min Machines Accessed 2 | . 2 . Terminals 1 | . 1 . Fabricators . | . . . Repair Stations 1 | . 1 . Recycling Units . | . . . Scanalyzers . | . . . Garrison Access . | . . . Total Hacks 9 | . 9 . Successful 3 | . 3 . Failed 6 | . 6 . Catastrophic . | . . . Database Lockouts . | . . . Manual . | . . . Terminals 6 | . 6 . Fabricators . | . . . Repair Stations 3 | . 3 . Recycling Units . | . . . Scanalyzers . | . . . Garrison Access . | . . . Terminal Hacks 3 | . 3 . Reinforcement Status 1 | . 1 . Recall Reinforcements 1 | . 1 . Zone Layout 1 | . 1 . Fabricator Hacks . | . . . Repair Station Hacks . | . . . Recycling Unit Hacks . | . . . Scanalyzer . | . . . Garrison Access Hacks . | . . . Unauthorized Hacks . | . . . Terminals . | . . . Fabricators . | . . . Repair Stations . | . . . Recycling Units . | . . . Scanalyzers . | . . . Garrison Access . | . . . Data Cores Recovered . | . . . Used . | . . . Hacking Detections 2 | . 2 . Full Trace Events 1 | . 1 . Feedback Events . | . . . Feedback Blocked . | . . . Robot Schematics Acquired . | . . . Robots Built . | . . . Authchips . | . . . Time . | . . . Total Robot Build Rating . | . . . Part Schematics Acquired . | . . . Parts Built . | . . . Authchips . | . . . Time . | . . . Total Part Build Rating . | . . . Part Studies Acquired . | . . . Parts Repaired . | . . . Time . | . . . Parts Recycled . | . . . Recycled Matter . | . . . Retrieved Matter . | . . . Retrieved Components . | . . . Parts Scanalyzed . | . . . Part Schematics Acquired . | . . . Parts Damaged . | . . . Bothacking | -11 -10 -10 ------------ Run | Yrd Mat Min Used RIF Installer . | . . . Robots Hacked . | . . . Non-combat . | . . . Combat . | . . . Robot Hacks Applied . | . . . Relay Couplers Released . | . . . Fabnet Peak Effective % . | . . . Robots Rewired . | . . . Allies Hacked . | . . . Hacks Repelled . | . . . Allies | -11 -10 -10 -------- Run | Yrd Mat Min Total Allies . | . . . Largest Group . | . . . Highest-Rated Group . | . . . Highest-Rated Ally . | . . . Total Orders . | . . . Ally Attacks . | . . . Total Damage . | . . . Kills . | . . . Allies Corrupted . | . . . Allies Melted . | . . . Intel | -11 -10 -10 ------- Run | Yrd Mat Min Active Infowar (turns) 250 | . 156 94 Terrain 250 | . 156 94 Robot Analysis Total . | . . . Derelict Logs Recovered . | . . . Drone Launches . | . . . Drone Recoveries . | . . . Exploration | -11 -10 -10 ------------- Run | Yrd Mat Min Turns Passed 423 | 55 252 116 Spaces Moved 369 | 55 216 98 Core 10 | 10 . . Treads . | . . . Legs . | . . . Wheels 358 | 45 215 98 Hover . | . . . Flight 1 | . 1 . Fastest Speed 50 | 50 80 80 Average Speed 80 | 82 80 80 Slowest Speed 200 | 150 200 80 Overloaded Moves . | . . . Propulsion Burnouts . | . . . Robots Hopped . | . . . Potential Cave-ins . | . . . Cave-ins Triggered . | . . . Exploration Rate (%) 21 | 3 31 31 Regions Visited 2 Branch Regions 1 Pre-discovered Areas . | . . . Known Exits Taken . | . . . Unknown Exits Taken 2 | 1 1 . Scrap Searched . | . . . Spaces Dug . | . . . Terrain Destroyed 24 | . . 24 Melee . | . . . Projectile . | . . . AOE 24 | . . 24 Terrain Rammed . | . . . Walls Destroyed . | . . . Machines Disabled . | . . . Actions | -11 -10 -10 --------- Run | Yrd Mat Min Total 427 | 61 249 117 Wait . | . . . Move 367 | 54 215 98 Hop . | . . . Pick Up 3 | 2 1 . Fast Attach 8 | 4 3 1 Attach 1 | . . 1 Detach 1 | . 1 . Swap 4 | 1 3 . Drop . | . . . Fire 43 | . 26 17 Melee . | . . . Ram . | . . . Kick . | . . . Crush . | . . . Escape Stasis . | . . . Rewire . | . . . Trap . | . . . Miscellaneous . | . . . Route ------- -11/Scrapyard -10/Materials -10/Mines History --------- Turn | Location | Event 33 | -11/Scrapyard | Discovered new exit (range 14) 56 | -11/Scrapyard | Entered Materials 251 | -10/Materials | Discovered new exit (range 8) 304 | -10/Materials | Build established: Mutant 308 | -10/Materials | Entered Mines 336 | -10/Mines | Received a Rocket Launcher from a helpful Derelict 372 | -10/Mines | Assembled infested the area 392 | -10/Mines | Core integrity fell below 50% 415 | -10/Mines | Core integrity fell below 20% 424 | -10/Mines | Destroyed by as-96814 with Assembled Rifle Last Messages --------------- as-69361 destroyed. as-38848 destroyed. as-99236 destroyed. as-18681 destroyed. as-19442 destroyed. as-20422 destroyed. The unstable cave ceiling collapses. Terrain Scanner destroyed. System corrupted by crushing effect (+5). Knocked back. The unstable cave ceiling collapses. as-53581 destroyed. System corrupted: Energy discharge (-26). Acquired 8 matter. Wheel destroyed. U-05 Engineer builds a Wall. The unstable cave ceiling collapses. /BH I%OPXXYKCXGX:PNK XEMU E U-05 Engineer lays Concrete. U-05 Engineer builds a Wall. Map ----- +----------------------------------------------------+ | ????????#???## ## #???????????????????????? | | ????????????# ### #???????????????????????? | | ???????????## ###?# #???????????????????????? | | ??????????## #???# ???????????????????????? | | ??????????# #???####???????????????????????? | | ??????????# #?????????????#????????????????? | | ??????????## ##?#??#?????????????????????????? | | ??????????## #???????????????????????????????? | | ??????????# ##??????????????????????????????? | | ??????????# ######??????????????????????????? | | ??????????# #????????? ????????????????? | | ??????????# #??????????????????????????? | | ??????????# ####### #???#??????????????????????? | | ??????????## ??????# #??#???#???????????????????? | | ???????????# ??????# #??????#???????????????????? | | ???????????## ??????# #??????##??????????????????? | | ????????????#?????#?# #??????????????????????????? | | ????????????????????# #??????????????????????????? | | ????????????????????# #??????????????????????????? | | ????????????????????# #????????????????#?????????? | | ???????????????????## #??????????????????????????? | | ???????????????????## ###???????##???????????????? | | ???????????????????##u# ##??#?? ##??????????????? | | ???????????????????## ##???? #??????????????? | | ???????????????????# #### #??????????????? | | ????????????#??????# # @ #??????????????? | | ??????????????????### # # a #??????????????? | | ????????????????????##### a #??????????????? | | ????????????????????????### # #??????????????? | | ??????????????????????????? #?#???????????? | | ????????????????????????????# #?????????????? | | ????????????????????????????# #?????????????? | | ???????????????????????????? ????????????? | | ???????????????????????????? ??????????? | | ???????????????????????????? ?????????? | | ??????????????????#??#?????? ????????? | | ???????????????????????????? #????????? | | ??????????????????#????????? #????????? | | ???????????????????????????? ??????????? | | ???????????????????????????? ????????????? | | ???????????????????????????? ???????????????? | | ???????????????????????????? ?????????????????? | | ?????????????????????????????????????????????????? | | ?????????????????????????????????????????????????? | | ?????????????????????????????????????????????????? | | ?????????????????????????????????????????????????? | | ?????????????????????????????????????????????????? | | ?????????????????????????????????????????????????? | | ?????????????????????????????????????????????????? | | ?????????????????????????????????????????????????? | +----------------------------------------------------+ Best States ------------- Heat Dissipation 25 Energy Generation 10 Energy Capacity 250 Matter Stores 300 Matter Capacity 300 Sight Range 16 Terrain Scan Range 14 Terrain Scan Density 10 Evasion (%) 44 Item Schematics ----------------- None Robot Schematics ------------------ None Fabricated ------------ Nothing Repaired ---------- Nothing Studied --------- None Alien Tech Used ----------------- None Achievements -------------- GoHome() Hunted Challenges ------------ None Game ------ Seed ZeronetHoverBrace Manual? 0 Play Time 00:11:07 Cumulative 8.8 hours Start 2026.07.13 @ 13:46:51 End 2026.07.13 @ 13:57:17 Sessions 1 Manual Loads 0 Difficulty Rogue Special Mode None Game No. 21 Rogue 21 Adventurer 0 Explorer 0 Win Type - Total 0 Types 0/0/0/0/0/0/0/0/0/0 Lore% 14 Gallery% 10 Achievement% 11 Wizard Run 0 Options --------- Layout 1 ASCII 0 Keyboard 1 Movement Arrows Keybinds 0 Fullscreen 1 Font 36/SmallcapsGlow++ Map View 53x45 Zoom Use 0% Tactical HUD 0 Map Filters NONE Filters NONE Steam 1 RUN: 199f6050-7a9f-4924-87eb-84b0503e1a58